bitfinex-derivatives/quotes_ETHF0:USTF0_20210111
["timestamp","ask_amount","ask_price","bid_price","bid_amount"]
[1610381961320,0.911,932.58,932.0,4.00959]
[1610381961520,31.5773754,936.22,932.0,4.00959]
[1610381962121,31.5773754,936.22,933.34,4.00959]
[1610381962320,31.56121348,936.47,932.9,63.0744]
[1610381962520,31.49920362,936.79,932.9,63.0744]
[1610381963523,31.48512622,937.21,932.9,63.0744]
[1610381963921,30.48107108,937.4,933.07,0.9936]
[1610381964122,3.00959,935.66,934.95,4.00959]
[1610381964320,1.763,935.66,933.07,0.9936]
[1610381964721,0.763,935.66,933.07,0.9936]
[1610381965123,0.763,935.66,933.12,0.32744052]
[1610381965526,32.82068982,939.51,933.53,0.32814127]
[1610381965927,32.82068982,939.51,934.9,0.9936]
[1610381966129,4.00959,938.89,934.36,0.99636]
[1610381966329,1.646,938.89,935.0,1.03437]
[1610381966564,24.76968982,939.51,936.36,0.99636]
[1610381966841,32.7958354,939.98,936.69,1.03918]
[1610381967248,38.0421198,945.03,936.7,9.0]
[1610381967444,1.06181,945.62,936.36,0.99636]
[1610381967652,28.34118474,945.97,936.36,0.99636]
[1610381968038,4.00959,941.91,940.74,4.00959]
[1610381968234,5.95159,941.91,936.36,0.99636]
[1610381968432,5.95159,941.91,937.46,59.7057]
[1610381968848,5.95159,941.91,938.03,0.99636]
[1610381969641,5.95159,941.91,937.47,1.342]
[1610381969841,5.95159,941.91,937.58,1.342]
[1610381970235,1.942,941.91,937.58,1.342]
[1610381970442,1.942,941.91,937.63,0.32614006]
[1610381970638,4.00959,941.32,940.99,4.00959]
[1610381970838,2.151,941.32,937.59,1.342]
[1610381971037,2.22,941.32,937.59,1.342]
[1610381971935,2.22,941.32,937.6,1.342]
[1610381972136,2.22,941.32,937.6,3.272]
[1610381972336,1.44164,948.1,937.6,3.272]
[1610381972536,1.44164,948.1,938.42,0.32693901]
[1610381972739,4.00959,942.55,942.23,4.00959]
[1610381972939,6.14159,942.55,938.33,1.974]
[1610381973139,6.14159,942.55,938.13,0.32661044]
[1610381973540,6.14159,942.55,938.6,0.32653437]
[1610381973939,6.14159,942.55,938.63,0.32649683]
[1610381974143,6.14159,942.55,938.61,0.32651591]
[1610381974539,6.14159,942.55,938.7,0.3265698]
[1610381974740,4.00959,941.62,938.7,0.3265698]
[1610381974941,1.848,941.62,937.46,57.73971635]
[1610381975142,1.848,941.62,939.56,75.8229]
[1610381975341,1.848,941.62,937.87,1.954]
[1610381975541,1.848,941.62,937.3,3.92195588]
[1610381975740,1.848,941.62,936.52,3.9229947]
[1610381976142,1.848,941.62,935.42,3.92545135]
[1610381976442,1.848,941.62,935.28,3.9274613]
[1610381976645,4.00959,938.9,938.08,4.00959]
[1610381976843,4.00959,938.9,935.47,3.13798]
[1610381977046,5.51259,938.9,934.49,3.92763161]
[1610381977247,5.51259,938.9,934.97,3.92744433]
[1610381977444,5.51259,938.9,936.52,0.7]
[1610381978546,5.51259,938.9,934.13,1.119]
[1610381978745,1.503,938.9,934.07,1.06898]
[1610381979346,4.00959,936.38,935.44,4.00959]
[1610381979548,5.54859,936.38,935.44,4.00959]
[1610381979747,1.539,936.38,935.44,4.00959]
[1610381979949,11.5338,938.89,935.7,9.6803]
[1610381980148,1.503,938.9,935.23,2.149]
[1610381980951,1.07299,938.62,935.23,2.149]
[1610381981151,3.22299,938.62,933.09,3.92378039]
[1610381981352,3.22299,938.62,932.93,3.92580372]
[1610381981353,4.00959,933.37,932.93,3.92580372]
[1610381981553,2.163,935.26,932.49,3.93437626]
[1610381981752,2.163,935.26,932.49,5.58437626]
[1610381981952,2.163,935.26,932.49,1.65]
[1610381982352,0.4,935.23,932.49,1.65]
[1610381983355,4.00959,932.5,931.82,3.93790761]
[1610381983555,6.28059,932.5,932.31,0.98294941]
[1610381983756,0.4,935.23,931.09,2.50184428]
[1610381983955,0.4,935.23,931.07,1.645]
[1610381984155,0.4,935.23,931.07,0.645]
[1610381984957,0.4,935.23,931.07,0.245]
[1610381985358,0.4,935.23,932.21,0.32791634]
[1610381985558,0.4,935.23,932.21,2.41391634]
[1610381985759,0.4,935.23,932.6,0.32773997]
[1610381986162,0.4,935.23,932.59,0.32778384]
[1610381986362,0.4,935.23,932.63,0.32771807]
[1610381986761,0.4,935.23,933.03,0.32832602]
[1610381986963,0.4,935.23,933.03,2.51532602]
[1610381987162,0.4,935.23,933.03,2.187]
[1610381987362,4.00959,933.73,933.03,2.187]
[1610381987561,1.596,933.9,933.03,2.187]
[1610381987765,1.596,933.9,932.5,4.00959]
[1610381987962,1.596,933.9,932.74,0.32825821]
[1610381988162,1.596,933.9,932.74,2.23625821]
[1610381988366,1.596,933.9,933.03,0.32830487]
[1610381988765,1.596,933.9,932.94,0.32824797]
[1610381989066,1.596,933.9,932.91,0.32822032]
[1610381989366,4.00959,933.61,932.98,4.00959]
[1610381989564,6.19659,933.61,932.59,1.30237528]
[1610381989767,6.19659,933.61,932.5,1.917]
[1610381990665,1.596,933.9,932.5,1.917]
[1610381991269,1.596,933.9,932.62,1.64120686]
[1610381991467,1.596,933.9,933.89,4.00959]
[1610381992668,1.633,934.09,933.89,4.00959]
[1610381992868,0.4,935.23,933.89,4.00959]
[1610381993068,0.4,935.23,932.39,1.813]
[1610381993470,4.00959,934.13,932.39,1.813]
[1610381993672,6.36259,934.13,932.39,1.813]
[1610381994072,6.36259,934.13,932.63,0.98488864]
[1610381994473,6.36259,934.13,932.65,0.98496504]
[1610381994670,6.36259,934.13,932.65,2.50296504]
[1610381994872,6.36259,934.13,932.67,0.98503997]
[1610381995173,6.36259,934.13,932.42,0.98508851]
[1610381995472,4.00959,932.44,932.42,0.98508851]
[1610381995672,1.713,932.67,932.36,4.00959]
[1610381996673,2.353,934.13,932.36,4.00959]
[1610381997173,2.353,934.13,932.36,6.47559]
[1610381997376,0.4,935.23,932.52,0.98309996]
[1610381997580,4.00959,934.56,932.62,0.98288496]
[1610381997981,4.00959,934.56,932.69,0.98287904]
[1610381998181,4.00959,934.56,932.7,0.98288692]
[1610381998375,1.977,934.69,932.7,0.98288692]
[1610381998574,1.977,934.69,933.11,0.98237341]
[1610381998781,1.977,934.69,933.11,3.05037341]
[1610381998980,1.977,934.69,933.15,0.98242194]
[1610381999274,1.977,934.69,933.11,2.068]
[1610381999475,4.00959,934.67,933.92,4.00959]
[1610381999874,1.977,934.69,933.92,4.00959]
[1610382001575,1.977,934.69,934.68,4.00959]
[1610382001774,0.4,935.23,934.68,4.00959]
[1610382002575,1.063,940.04,934.68,6.45259]
[1610382002775,1.10019,939.67,934.68,6.45259]
[1610382002975,0.74619,939.67,934.68,6.45259]
[1610382003175,83.7959,934.69,934.68,6.45259]
[1610382003375,2.04,935.42,934.68,6.45259]
[1610382003575,2.04,935.42,934.68,2.443]
[1610382004177,1.956,939.67,934.68,2.443]
[1610382005578,4.00959,937.25,936.84,4.00959]
[1610382005778,5.64459,937.25,936.84,4.00959]
[1610382006178,5.64459,937.25,934.68,2.443]
[1610382006179,5.64459,937.25,934.83,0.32625481]
[1610382006378,5.64459,937.25,934.68,2.443]
[1610382006978,5.64459,937.25,934.81,0.32627299]
[1610382007180,5.64459,937.25,934.39,0.97935316]
[1610382007580,4.00959,936.17,935.04,4.00959]
[1610382007778,6.44959,936.17,935.04,4.00959]
[1610382008179,2.44,936.17,935.04,4.00959]
[1610382008380,2.44,936.17,934.29,0.98143198]
[1610382008582,2.44,936.17,934.38,0.98146238]
[1610382008782,2.113,936.59,934.38,0.98146238]
[1610382008982,2.113,936.59,934.24,0.98153487]
[1610382009282,2.113,936.59,934.23,67.9009]
[1610382009482,4.00959,936.06,935.6,4.00959]
[1610382009684,4.00959,936.06,934.32,0.9815873]
[1610382009882,4.00959,936.06,934.28,0.97955551]
[1610382010286,4.00959,936.06,934.23,67.9009]
[1610382010483,2.113,936.59,934.23,67.9009]
[1610382010684,1.635,937.25,934.3,0.97937279]
[1610382010885,62.7114,937.61,934.52,0.97922641]
[1610382011085,55.3024,937.61,934.59,9.0]
[1610382011287,50.4544,937.61,934.69,9.0]
[1610382011486,4.00959,936.87,936.38,4.00959]
[1610382011686,1.894,937.33,936.38,4.00959]
[1610382011886,1.894,937.33,936.38,5.66759]
[1610382012688,1.894,937.33,936.38,2.48299]
[1610382012886,1.894,937.33,935.83,1.837]
[1610382013488,4.00959,936.14,935.83,1.837]
[1610382013688,1.726,936.7,935.68,4.00959]
[1610382013888,1.726,936.7,935.68,6.49259]
[1610382014288,1.726,936.7,935.68,2.483]
[1610382015590,4.00959,936.03,935.68,2.483]
[1610382017594,4.00959,935.69,935.68,1.896]
[1610382017793,4.00959,935.69,933.87,0.32740137]
[1610382017994,5.71459,935.69,933.57,0.3275365]
[1610382018395,5.71459,935.69,933.09,0.32760379]
[1610382018794,5.71459,935.69,932.97,0.32768856]
[1610382018994,5.71459,935.69,932.75,0.32779069]
[1610382019396,9.0,935.68,932.4,0.32793545]
[1610382019595,4.00959,932.41,932.4,0.32793545]
[1610382019795,2.331,934.23,932.09,0.32794965]
[1610382019996,2.331,934.23,932.09,0.77894965]
[1610382020195,2.331,934.23,932.08,0.10694836]
[1610382020395,2.331,934.23,932.09,1.778]
[1610382020595,2.331,934.23,932.09,0.778]
[1610382020797,2.331,934.23,932.26,0.65583709]
[1610382021196,2.331,934.23,932.19,0.65594208]
[1610382021399,2.331,934.23,932.09,0.778]
[1610382021599,4.00959,932.1,932.09,0.778]
[1610382021799,2.331,934.23,932.09,0.778]
[1610382021800,1.669,933.06,932.09,0.778]
[1610382021999,1.669,933.06,931.67,0.65599473]
[1610382022200,1.669,933.06,930.75,1.51807312]
[1610382022401,1.669,933.06,930.66,1.96526793]
[1610382022801,9.0,933.05,930.33,1.96580183]
[1610382023001,0.3745,932.09,930.33,1.96580183]
[1610382023201,0.3745,932.09,930.28,1.96688695]
[1610382023401,0.3745,932.09,929.91,3.27814492]
[1610382023402,0.3745,932.09,929.91,1.96743274]
[1610382023602,4.00959,929.92,929.91,1.96743274]
[1610382023802,0.3745,932.09,929.47,1.97208942]
[1610382024002,0.3745,932.09,929.64,8.0079]
[1610382025205,0.3745,932.09,930.0,1.97124761]
[1610382025406,0.3745,932.09,930.0,3.79824761]
[1610382025606,4.00959,932.01,931.69,4.00959]
[1610382025807,2.445,932.69,931.69,4.00959]
[1610382026007,1.669,933.06,931.69,5.72359]
[1610382027007,1.44164,936.33,931.69,5.72359]
[1610382027206,1.44164,936.33,931.69,1.714]
[1610382027409,1.44164,936.33,931.09,2.37]
[1610382027608,4.00959,933.49,932.73,4.00959]
[1610382027810,6.34059,933.49,932.73,4.00959]
[1610382028009,2.331,933.49,932.73,4.00959]
[1610382029710,2.331,933.49,933.48,4.00959]
[1610382030110,2.331,933.49,932.45,2.312]
[1610382030111,4.00959,933.96,932.45,2.312]
[1610382030312,1.10138,938.14,932.45,2.312]
[1610382030710,1.10138,938.14,932.5,0.32873506]
[1610382030914,1.44164,940.84,932.5,0.32873506]
[1610382031110,1.44164,940.84,932.85,0.32863724]
[1610382031310,1.44164,940.84,933.1,0.32855007]
[1610382031509,24.57604,942.52,933.1,2.16655007]
[1610382031810,23.57604,942.52,935.91,4.00959]
[1610382032010,22.57604,942.52,935.91,4.00959]
[1610382032410,9.0,942.51,935.91,4.00959]
[1610382032610,22.57604,942.42,935.91,4.00959]
[1610382033110,9.0,942.41,935.91,4.00959]
[1610382033312,22.57604,942.31,935.91,4.00959]
[1610382033513,24.17504,942.31,935.91,4.00959]
[1610382033714,4.00959,936.14,935.91,4.00959]
[1610382033913,6.24459,936.14,934.67,2.12]
[1610382034113,22.57604,942.2,934.67,2.12]
[1610382034314,2.484,936.14,934.67,2.12]
[1610382034915,2.484,936.14,934.67,11.12]
[1610382035117,22.57604,941.98,934.67,11.12]
[1610382035317,6.0448,941.92,934.67,2.12]
[1610382035518,22.57604,941.82,934.67,2.12]
[1610382035717,22.57604,941.82,934.76,0.32822893]
[1610382035916,14.9705,941.81,934.67,2.12]
[1610382036116,22.57604,941.71,934.67,2.12]
[1610382036317,24.09004,941.71,934.67,2.12]
[1610382036518,14.9727,941.7,934.67,2.12]
[1610382036717,22.57604,941.6,934.67,2.12]
[1610382037122,22.57604,941.49,934.33,0.32836192]
[1610382037318,24.98204,941.49,934.33,0.32836192]
[1610382037718,24.98204,941.49,933.81,9.0]
[1610382037719,15.2094,941.48,935.97,4.00959]
[1610382037922,22.57604,941.38,935.97,4.00959]
[1610382038319,9.0,941.37,935.97,4.00959]
[1610382038518,22.57604,941.27,935.97,4.00959]
[1610382038719,24.17604,941.27,935.97,4.00959]
[1610382038919,6.2575,941.26,935.97,4.00959]
[1610382039120,22.57604,941.16,935.97,4.00959]
[1610382039521,5.9966,941.15,935.97,4.00959]
[1610382039721,4.00959,937.49,937.2,4.00959]
[1610382039920,1.625,937.49,936.14,0.2]
[1610382040319,1.773,937.49,936.14,0.2]
[1610382041520,6.3126,939.68,936.14,0.2]
[1610382041721,6.3126,939.68,936.96,4.00959]
[1610382041922,86.1984,939.69,936.96,4.00959]
[1610382043722,4.00959,938.53,937.4,4.00959]
[1610382043923,6.33459,938.53,936.14,0.2]
[1610382044125,6.33459,938.53,936.16,30.0]
[1610382044322,0.41839,938.53,936.16,31.514]
[1610382044722,0.41839,938.53,936.17,39.0]
[1610382044922,0.41839,938.53,936.26,0.32758121]
[1610382045122,0.41839,938.53,936.42,0.3275194]
[1610382045322,0.41839,938.53,936.42,2.1365194]
[1610382045523,86.1984,939.69,936.75,0.327447]
[1610382045723,4.00959,939.67,939.35,4.00959]
[1610382045930,5.85959,939.67,936.97,9.0]
[1610382046124,5.85959,939.67,937.07,30.0]
[1610382046325,1.85,939.67,938.53,0.1364]
[1610382046528,1.6,941.27,938.53,0.1364]
[1610382046725,6.1174,943.82,938.53,0.1364]
[1610382047127,1.06685,943.49,938.53,0.1364]
[1610382047327,3.21885,943.49,938.53,0.1364]
[1610382047526,30.0,943.38,938.53,0.1364]
[1610382047726,4.00959,939.21,938.53,0.1364]
[1610382047927,1.836,939.21,938.53,0.1364]
[1610382048127,6.1581,943.48,939.67,0.2]
[1610382048334,68.652,942.52,938.53,0.1364]
[1610382048531,70.578,942.52,938.53,0.1364]
[1610382049727,70.578,942.52,938.92,4.00959]
[1610382049728,4.00959,939.57,938.92,4.00959]
[1610382049927,6.03459,939.57,939.21,0.2]
[1610382050128,1.926,942.52,939.21,0.2]
[1610382050327,74.4801,941.62,939.21,0.2]
[1610382050527,76.4691,941.62,939.21,0.2]
[1610382051730,4.00959,940.17,939.56,4.00959]
[1610382051929,2.127,940.17,939.56,0.73359]
[1610382052533,2.398,940.17,939.56,0.73359]
[1610382053534,76.4691,941.62,939.56,0.73359]
[1610382053735,4.00959,940.98,940.5,4.00959]
[1610382053933,2.048,940.98,940.5,4.00959]
[1610382054334,2.048,940.98,939.56,1.733]
[1610382055737,4.00959,939.59,939.56,1.733]
[1610382056138,4.00959,939.59,939.51,84.7225]
[1610382056339,2.1471,939.58,939.51,84.7225]
[1610382056541,2.01,939.58,939.51,84.7225]
[1610382056939,2.01,939.58,939.21,0.2]
[1610382057438,2.01,939.58,938.53,0.1364]
[1610382057841,2.01,939.58,939.35,4.00959]
[1610382058040,2.01,939.58,938.53,0.1364]
[1610382059040,2.01,939.58,938.53,0.8364]
[1610382059240,2.01,939.58,937.99,68.7567]
[1610382059540,2.01,939.58,938.12,60.6042]
[1610382059744,2.01,939.58,938.44,4.00959]
[1610382059940,1.81,939.58,938.44,4.00959]
[1610382060541,1.81,939.58,938.12,60.6042]
[1610382061542,1.858,939.79,938.12,60.6042]
[1610382061741,2.048,940.98,938.12,60.6042]
[1610382061742,2.048,940.98,938.55,4.00959]
[1610382061941,67.2559,940.14,936.97,2.282]
[1610382062141,69.5599,940.14,936.97,2.282]
[1610382062541,69.5599,940.14,936.98,9.0]
[1610382062744,69.5599,940.14,937.95,1.00189]
[1610382062942,69.5599,940.14,937.95,3.34889]
[1610382063144,69.5599,940.14,938.08,0.9986]
[1610382063546,69.5599,940.14,938.23,0.32687705]
[1610382063744,69.5599,940.14,938.23,2.26687705]
[1610382063947,67.2559,940.14,938.52,0.32682398]
[1610382064145,67.2559,940.14,938.52,1.99082398]
[1610382064345,67.2559,940.14,938.78,0.32673501]
[1610382064545,67.2559,940.14,938.95,0.32669978]
[1610382064945,6.5079,943.57,938.98,0.32670264]
[1610382065145,4.00959,941.82,941.08,4.00959]
[1610382065346,4.00959,941.82,940.43,1.81]
[1610382065546,1.92,941.82,940.43,1.81]
[1610382066145,1.92,941.82,940.44,9.0]
[1610382066747,1.92,941.82,940.43,1.81]
[1610382067147,4.00959,941.68,940.97,4.00959]
[1610382067549,32.66636043,945.27,940.97,4.00959]
[1610382067550,1.968,942.08,940.97,4.00959]
[1610382067748,1.968,942.08,940.97,6.42059]
[1610382069150,4.00959,941.71,941.25,4.00959]
[1610382069548,4.00959,941.71,940.97,2.411]
[1610382069749,1.968,942.08,940.97,2.411]
[1610382070351,1.968,942.08,940.98,9.0]
[1610382070553,2.1243,942.07,940.98,9.0]
[1610382070753,1.968,942.08,940.98,9.0]
[1610382071352,1.968,942.08,942.07,4.00959]
[1610382071753,1.968,942.08,940.65,9.0]
[1610382071952,70.9025,943.73,940.98,9.0]
[1610382072151,6.0763,945.54,942.07,9.0]
[1610382072757,6.0763,945.54,941.76,77.3791]
[1610382072954,7.9553,945.54,941.76,77.3791]
[1610382073354,4.00959,943.42,941.76,77.3791]
[1610382073554,6.30859,943.42,941.76,77.3791]
[1610382074357,2.299,943.42,941.76,77.3791]
[1610382074553,2.299,943.42,941.77,9.0]
[1610382075157,2.299,943.42,941.78,9.0]
[1610382075356,2.299,943.42,941.76,77.3791]
[1610382076157,2.299,943.42,941.77,9.0]
[1610382076858,2.299,943.42,941.77,9.32559422]
[1610382077258,2.299,943.42,943.41,4.00959]
[1610382077456,0.2658,943.42,943.41,4.00959]
[1610382077857,1.879,945.54,943.41,4.00959]
[1610382078057,5.9499,948.73,943.42,0.2]
[1610382078457,70.4946,946.42,943.42,0.2]
[1610382079058,70.4946,946.42,945.54,0.4]
[1610382079258,4.00959,946.17,945.49,4.00959]
[1610382079460,5.98059,946.17,943.42,9.2]
[1610382079657,1.971,946.17,943.42,9.2]
[1610382079859,1.8335,946.17,943.42,9.2]
[1610382080059,1.8335,946.17,945.54,0.0695]
[1610382081059,70.4946,946.42,945.54,0.0695]
[1610382081259,4.00959,947.85,946.41,4.00959]
[1610382081460,6.0942,951.26,946.41,4.00959]
[1610382081659,5.9594,951.25,946.41,4.00959]
[1610382081862,8.1934,951.25,946.41,4.00959]
[1610382082062,8.1934,951.25,946.42,9.0]
[1610382082862,8.1934,951.25,946.41,4.00959]
[1610382083260,4.00959,948.43,948.24,4.00959]
[1610382083460,6.38659,948.43,945.55,2.442]
[1610382083861,2.377,948.43,945.55,2.442]
[1610382084461,2.377,948.43,945.56,9.0]
[1610382084665,2.377,948.43,945.79,1.11355]
[1610382084862,6.1845,951.24,945.79,1.11355]
[1610382085063,6.1845,951.24,945.8,9.0]
[1610382085264,6.1845,951.24,949.34,4.00959]
[1610382085464,6.1845,951.24,946.54,0.32422767]
[1610382085664,6.1845,951.24,947.24,1.11355]
[1610382086064,6.1845,951.24,947.25,9.0]
[1610382086666,6.1845,951.24,947.39,85.3248]
[1610382086864,6.1845,951.24,947.51,0.64768275]
[1610382087065,6.1845,951.24,947.61,0.32384138]
[1610382087266,6.1845,951.24,947.4,9.0]
[1610382087267,6.1845,951.24,951.23,4.00959]
[1610382087465,6.1845,951.24,948.67,2.008]
[1610382087866,6.1845,951.24,948.68,9.0]
[1610382088466,2.234,951.25,948.67,2.008]
[1610382088667,71.6203,953.39,948.67,2.008]
[1610382088866,6.4375,953.38,948.69,9.32354747]
[1610382089070,8.1835,953.38,948.69,0.32354747]
[1610382089269,4.00959,950.22,949.82,4.00959]
[1610382089469,5.96959,950.22,948.59,4.2924]
[1610382089672,5.96959,950.22,948.56,0.32350148]
[1610382089870,5.96959,950.22,948.47,0.32355088]
[1610382090269,6.2661,953.37,948.36,0.32351966]
[1610382090471,6.2661,953.37,948.42,0.32355656]
[1610382090671,1.746,953.38,948.42,0.32355656]
[1610382090872,1.746,953.38,948.48,0.32351479]
[1610382091071,6.2498,953.36,948.48,0.32351479]
[1610382091271,6.2498,953.36,950.9,4.00959]
[1610382091272,4.00959,951.47,950.9,4.00959]
[1610382091472,6.09159,951.47,948.81,0.3234613]
[1610382091871,6.09159,951.47,948.43,1.6173065]
[1610382091872,6.09159,951.47,948.89,0.32348012]
[1610382092272,6.09159,951.47,948.84,0.32340581]
[1610382092472,2.082,951.47,948.84,0.32340581]
[1610382092671,2.082,951.47,948.88,0.32342642]
[1610382092874,2.082,951.47,948.97,0.32343299]
[1610382093272,4.00959,950.85,948.89,0.32341685]
[1610382093472,5.82859,950.85,948.89,0.32341685]
[1610382093671,5.82859,950.85,948.85,0.32344035]
[1610382094072,5.82859,950.85,948.87,0.32349335]
[1610382094474,5.82859,950.85,948.76,0.32355397]
[1610382095076,5.82859,950.85,948.5,0.32361539]
[1610382095278,5.82859,950.85,948.12,1.61807697]
[1610382095279,4.00959,950.23,949.25,4.00959]
[1610382095474,1.819,950.85,949.25,4.00959]
[1610382095674,1.819,950.85,948.35,76.93258298]
[1610382095675,1.891,950.23,948.35,76.93258298]
[1610382095975,1.891,950.23,948.41,0.32375299]
[1610382096386,1.891,950.23,948.35,76.6089]
[1610382096980,1.891,950.23,948.12,0.32377457]
[1610382097179,1.891,950.23,947.94,0.32381175]
[1610382097387,4.00959,948.14,947.81,4.00959]
[1610382097582,6.07759,948.14,947.66,68.1143]
[1610382098179,2.068,948.14,947.66,68.1143]
[1610382101284,2.068,948.14,948.13,4.00959]
[1610382101484,2.068,948.14,947.66,68.1143]
[1610382102487,2.068,948.14,946.73,0.32413532]
[1610382102687,4.00959,948.72,946.73,0.32413532]
[1610382102886,1.978,948.14,946.62,0.32412692]
[1610382103086,1.978,948.14,946.87,0.32410963]
[1610382103288,4.00959,947.86,947.72,4.00959]
[1610382103486,6.25359,947.86,946.92,0.32343821]
[1610382103788,2.244,947.86,946.87,0.32413052]
[1610382104188,1.978,948.14,947.0,0.32326923]
[1610382104388,0.5883,948.14,947.0,0.32326923]
[1610382104588,0.5883,948.14,946.62,1.61634616]
[1610382104589,4.9185,950.22,947.53,0.32406383]
[1610382104789,2.31,950.22,947.53,0.32406383]
[1610382104988,1.879,950.23,947.85,0.32388487]
[1610382105191,73.1689,951.99,948.12,0.32381288]
[1610382105588,73.1689,951.99,948.18,0.32305903]
[1610382105989,4.00959,950.35,949.58,4.00959]
[1610382106189,4.00959,950.35,948.07,0.32300938]
[1610382106501,4.00959,950.35,947.69,1.61504688]
[1610382106502,5.49009,950.35,948.13,0.32380906]
[1610382106696,1.645,950.35,948.13,0.32380906]
[1610382106898,1.1195,950.35,948.2,0.32363685]
[1610382107097,0.5936,950.35,948.47,0.32359019]
[1610382107498,0.5936,950.35,948.68,0.32358508]
[1610382107911,0.5936,950.35,950.18,4.00959]
[1610382108094,0.5936,950.35,949.19,0.32344475]
[1610382108494,0.5936,950.35,949.43,0.32353275]
[1610382108893,6.5096,953.21,949.02,0.32338421]
[1610382109093,6.5096,953.21,949.01,0.32359462]
[1610382109293,8.2936,953.21,949.01,0.32359462]
[1610382109494,8.2936,953.21,948.74,9.0]
[1610382109693,68.651,951.66,948.74,9.0]
[1610382109896,70.555,951.66,948.84,0.32354995]
[1610382110094,70.555,951.66,950.54,4.00959]
[1610382110297,70.555,951.66,948.74,9.0]
[1610382110494,70.555,951.66,949.26,0.32331015]
[1610382110894,70.555,951.66,949.08,2.361]
[1610382110895,70.555,951.66,949.41,0.32324874]
[1610382111296,70.555,951.66,949.67,0.32321072]
[1610382111494,70.555,951.66,949.83,0.32318359]
[1610382111694,1.904,951.66,949.83,0.32318359]
[1610382111897,1.904,951.66,949.86,0.32313534]
[1610382112094,1.904,951.66,951.65,4.00959]
[1610382112294,1.904,951.66,950.13,0.32305823]
[1610382112493,1.904,951.66,950.08,1.06898]
[1610382112494,1.904,951.66,950.36,0.32299662]
[1610382112695,38.6607,953.67,950.36,0.32299662]
[1610382112896,6.0206,956.32,951.83,1.06898]
[1610382113097,6.0206,956.32,952.44,1.03437]
[1610382113494,5.2997,956.32,952.45,9.0]
[1610382113694,5.0403,956.32,952.45,9.0]
[1610382114095,5.0403,956.32,952.44,1.03437]
[1610382114296,4.00959,954.93,954.06,4.00959]
[1610382114495,6.12859,954.93,954.06,4.00959]
[1610382114895,2.119,954.93,954.06,4.00959]
[1610382115095,0.977,954.93,954.06,4.00959]
[1610382115297,0.977,954.93,954.06,13.00959]
[1610382115896,1.995,954.93,954.06,13.00959]
[1610382116097,0.5178,954.93,954.06,13.00959]
[1610382116297,0.5178,954.93,954.92,4.00959]
[1610382116497,0.8082,956.32,954.92,4.00959]
[1610382117100,76.9785,959.42,954.92,4.00959]
[1610382117299,76.9785,959.42,955.77,1.03437]
[1610382117900,76.9785,959.42,955.78,9.0]
[1610382118301,4.00959,958.67,958.22,4.00959]
[1610382118499,4.00959,958.67,955.77,1.03437]
[1610382118500,5.58759,958.67,955.77,1.03437]
[1610382118900,5.58759,958.67,955.22,9.0]
[1610382119100,5.58759,958.67,955.27,0.32152959]
[1610382119300,5.58759,958.67,954.88,1.60764796]
[1610382119301,5.58759,958.67,955.42,0.32160703]
[1610382119699,5.58759,958.67,954.56,0.32161287]
[1610382120100,5.58759,958.67,954.62,0.32164277]
[1610382120299,5.58759,958.67,954.41,9.0]